bitfinex/quotes_ETHUSD_20251126
["timestamp","ask_amount","ask_price","bid_price","bid_amount"]
[1764197264653,1e-08,3025.3,3025.2,9.94282499]
[1764197264832,1e-08,3025.3,3025.2,10.0751546]
[1764197265936,1e-08,3025.3,3025.2,13.38072117]
[1764197266112,1e-08,3025.3,3025.2,15.67632834]
[1764197266317,1e-08,3025.3,3025.2,13.38072117]
[1764197270148,0.002,3025.6,3025.5,0.4987]
[1764197270149,1e-08,3025.6,3025.5,0.4987]
[1764197270449,1e-08,3025.6,3025.5,9.39498778]
[1764197270745,1e-08,3025.6,3025.5,10.97379566]
[1764197271242,0.002,3026.1,3025.9,0.4987]
[1764197271442,0.002,3026.1,3026.0,0.4987]
[1764197271740,0.002,3026.1,3026.0,4.01139266]
[1764197271947,0.002,3026.1,3026.0,5.19788677]
[1764197272117,0.002,3026.1,3026.0,6.68801905]
[1764197274745,0.002,3026.6,3026.2,0.6825]
[1764197275044,0.002,3026.6,3026.5,0.4987]
[1764197275239,0.002,3026.6,3026.5,0.904204]
[1764197275446,0.002,3026.6,3026.5,1.365104]
[1764197275651,0.002,3026.6,3026.5,1.36843403]
[1764197275815,0.3573,3026.6,3026.5,0.86973403]
[1764197276011,0.8455,3026.6,3026.0,13.17626179]
[1764197276238,0.4902,3026.6,3026.3,0.72559411]
[1764197276449,0.4895,3026.5,3026.3,0.72559411]
[1764197276740,0.3553,3026.4,3026.3,0.72559411]
[1764197277145,0.8435,3026.4,3026.3,0.72559411]
[1764197278328,0.8435,3026.4,3026.3,4.02995917]
[1764197280156,0.002,3026.6,3026.3,8.56646757]
[1764197280326,0.4765,3026.4,3026.3,4.76340251]
[1764197280659,0.8447,3026.4,3026.3,4.76340251]
[1764197280950,0.4765,3026.4,3026.3,4.76340251]
[1764197282032,0.8447,3026.4,3026.3,4.02995917]
[1764197282751,0.4765,3026.4,3026.3,4.02995917]
[1764197287265,0.8447,3026.4,3026.3,4.02995917]
[1764197293462,0.8447,3026.4,3026.3,4.03095917]
[1764197293862,0.8467,3026.4,3026.3,4.03095917]
[1764197298065,0.8467,3026.4,3026.3,0.001]
[1764197302763,0.4785,3026.4,3026.3,0.001]
[1764197302964,0.8467,3026.4,3026.3,0.001]
[1764197307381,1.15625377,3026.4,3026.3,0.001]
[1764197307872,1.56494915,3026.4,3026.3,0.001]
[1764197309446,1.69729364,3026.4,3026.3,0.001]
[1764197310557,5.00154952,3026.4,3026.3,0.001]
[1764197311571,1.69729364,3026.4,3026.3,0.001]
[1764197313375,5.00154952,3026.4,3026.3,0.001]
[1764197315679,5.0010966,3026.4,3026.3,0.001]
[1764197322254,5.4066006,3026.4,3026.3,0.001]
[1764197329093,5.40648677,3026.4,3026.3,0.001]
[1764197330065,6.13208088,3026.4,3026.3,0.001]
[1764197330259,6.844028,3026.4,3026.3,0.001]
[1764197333267,7.83452296,3026.4,3026.3,0.001]
[1764197334161,7.7347347,3026.4,3026.3,0.001]
[1764197334387,0.405504,3026.3,3026.0,0.001]
[1764197334588,7.12045268,3026.1,3026.0,0.001]
[1764197334794,8.14138682,3026.1,3026.0,0.001]
[1764197334983,8.75587468,3026.1,3026.0,0.001]
[1764197335291,8.75591676,3026.1,3026.0,0.001]
[1764197335867,12.06050021,3026.1,3026.0,0.001]
[1764197341065,12.26850021,3026.1,3026.0,0.001]
[1764197342703,5.87734164,3026.1,3026.0,0.001]
[1764197343270,5.39154164,3026.1,3026.0,0.001]
[1764197343590,0.64941696,3026.1,3026.0,0.9222]
[1764197343779,0.44141696,3026.1,3026.0,0.9222]
[1764197344103,0.3090291,3026.1,3026.0,0.9222]
[1764197344305,0.002,3026.4,3026.0,0.9222]
[1764197344306,0.21,3026.4,3026.0,0.9222]
[1764197344606,0.21,3026.4,3026.3,0.6501]
[1764197344905,0.51904603,3026.4,3026.3,3.95446506]
[1764197345103,0.51904603,3026.4,3026.3,5.18261858]
[1764197345985,0.31104603,3026.4,3026.3,5.18261858]
[1764197349183,0.31104603,3026.4,3026.3,1.87825352]
[1764197349388,0.31104603,3026.4,3026.3,1.1067]
[1764197350006,0.31104603,3026.4,3026.3,4.41106506]
[1764197352111,0.31104603,3026.4,3026.3,1.1067]
[1764197352510,0.31104603,3026.4,3026.3,4.41106506]
[1764197352809,0.002,3026.4,3026.0,0.6698]
[1764197352981,0.3636,3026.4,3026.0,0.6698]
[1764197353495,0.30879696,3026.3,3026.1,0.4777]
[1764197353694,0.3636,3026.4,3026.1,0.4777]
[1764197354012,0.308799,3026.3,3026.1,0.4777]
[1764197354319,0.3636,3026.4,3026.1,0.4777]
[1764197354486,0.30877365,3026.3,3026.1,0.4777]
[1764197354686,0.002,3026.4,3026.1,0.4777]
[1764197355016,0.30877364,3026.3,3026.1,0.4777]
[1764197355211,0.002,3026.4,3026.3,0.4665]
[1764197355514,0.31074306,3026.4,3026.3,0.4665]
[1764197356085,1.15444306,3026.4,3026.0,0.001]
[1764197356309,0.3456,3026.1,3026.0,0.001]
[1764197356616,0.5536,3026.1,3026.0,0.001]
[1764197356785,0.7424,3026.1,3026.0,0.001]
[1764197357414,0.3968,3026.1,3026.0,0.4675]
[1764197358712,0.3968,3026.1,3026.0,0.001]
[1764197359014,0.3968,3026.1,3026.0,0.9357]
[1764197359394,0.3968,3026.1,3026.0,0.4675]
[1764197360101,0.3968,3026.1,3026.0,0.9357]
[1764197361120,0.3968,3026.1,3026.0,4.24039266]
[1764197362222,0.3968,3026.1,3026.0,0.9357]
[1764197362923,0.3968,3026.1,3026.0,4.24039266]
[1764197364090,0.3968,3026.1,3026.0,4.99501204]
[1764197364909,0.1888,3026.1,3026.0,4.99501204]
[1764197369116,0.21,3026.4,3026.0,8.2997047]
[1764197369323,0.49797268,3026.3,3026.1,0.4682]
[1764197369628,0.1888,3026.3,3026.1,0.4682]
[1764197369831,0.1888,3026.3,3026.2,1.24982047]
[1764197370128,0.30917206,3026.3,3026.2,1.24982047]
[1764197370332,0.51917206,3026.3,3026.2,5.02249472]
[1764197376331,0.51917206,3026.3,3026.2,4.55429472]
[1764197376529,0.51917206,3026.3,3026.2,5.02249472]
[1764197377110,0.51917206,3026.3,3026.2,4.55429472]
[1764197377305,0.52117206,3026.3,3026.2,4.55429472]
[1764197377838,0.52117206,3026.3,3026.2,3.30447425]
[1764197377839,1.37137206,3026.3,3026.2,3.30447425]
[1764197378833,0.98327206,3026.3,3026.0,0.001]
[1764197379042,0.212,3026.3,3026.2,0.9347]
[1764197379329,0.52187824,3026.3,3026.2,0.9347]
[1764197380030,0.31187824,3026.3,3026.2,0.9347]
[1764197380809,0.31187824,3026.3,3026.2,4.23917425]
[1764197381013,0.31187824,3026.3,3026.2,4.99364931]
[1764197384630,0.31187824,3026.3,3026.2,4.52544931]
[1764197384846,0.31187824,3026.3,3026.2,4.99704931]
[1764197391225,0.31187824,3026.3,3026.2,4.52544931]
[1764197391942,0.31187824,3026.3,3026.2,4.99704931]
[1764197392937,0.31187824,3026.3,3026.2,4.52544931]
[1764197394348,0.69417824,3026.3,3026.2,3.77097425]
[1764197394530,0.31187824,3026.3,3026.2,3.77097425]
[1764197396030,0.69497824,3026.3,3026.2,3.30447425]
[1764197396649,0.69497824,3026.3,3026.1,6.61015975]
[1764197396837,0.30987824,3026.2,3026.1,3.3055763]
[1764197397037,0.30987824,3026.2,3026.1,4.01396224]
[1764197397553,0.30987824,3026.2,3026.1,4.48536224]
[1764197397856,1.15207824,3026.2,3026.1,0.001]
[1764197399447,4.45655249,3026.2,3026.1,0.001]
[1764197399849,1.15207824,3026.2,3026.1,0.001]
[1764197400644,4.45655249,3026.2,3026.1,0.001]
[1764197400848,5.32649962,3026.2,3026.1,0.001]
[1764197404923,5.45885681,3026.2,3026.1,0.001]
[1764197410362,5.45844144,3026.2,3026.1,0.001]
[1764197424276,5.86394544,3026.2,3026.1,0.001]
[1764197424657,6.57709413,3026.2,3026.1,0.001]
[1764197433798,6.26763126,3026.2,3026.1,0.001]
[1764197433990,6.57723746,3026.2,3026.1,0.001]
[1764197443203,6.11883746,3026.2,3026.1,0.001]
[1764197443409,6.57263746,3026.2,3026.1,0.001]
[1764197444407,6.11883746,3026.2,3026.1,0.001]
[1764197444924,6.57723746,3026.2,3026.1,0.001]
[1764197451804,7.30283157,3026.2,3026.1,0.001]
[1764197452005,8.19409242,3026.2,3026.1,0.001]
[1764197452508,4.43568156,3026.1,3026.0,0.001]
[1764197452682,7.5240008,3026.1,3026.0,0.001]
[1764197453077,7.65638077,3026.1,3026.0,0.001]
[1764197453610,7.86438077,3026.1,3026.0,0.001]
[1764197456209,7.86467581,3026.1,3026.0,0.001]
[1764197458112,14.2605707,3026.1,3026.0,0.001]
[1764197458311,14.0525707,3026.1,3026.0,0.001]
[1764197458517,14.2605707,3026.1,3026.0,0.001]
[1764197462113,7.86467581,3026.1,3026.0,0.001]
[1764197462410,14.26053144,3026.1,3026.0,0.001]
[1764197462797,13.55753144,3026.1,3026.0,0.001]
[1764197463001,13.76093144,3026.1,3026.0,0.4546]
[1764197464198,13.76093144,3026.1,3026.0,0.9466]
[1764197465993,14.60293144,3026.1,3026.0,0.001]
[1764197466812,18.08693144,3026.1,3026.0,0.001]
[1764197467018,14.60293144,3026.1,3026.0,0.001]
[1764197470021,13.71065924,3026.1,3026.0,0.001]
[1764197470192,17.01524269,3026.1,3025.9,0.001]
[1764197470392,4.35435597,3026.0,3025.9,0.001]
[1764197470793,4.48674865,3026.0,3025.9,0.001]
[1764197471424,7.79144131,3026.0,3025.9,0.001]
[1764197473734,7.79140802,3026.0,3025.9,0.001]
[1764197474601,14.18965595,3026.0,3025.9,0.001]
[1764197478326,13.69055595,3026.0,3025.9,0.001]
[1764197480103,14.14295595,3026.0,3025.9,0.001]
[1764197480328,14.14309588,3026.0,3025.9,0.001]
[1764197481230,13.25073108,3026.0,3025.9,0.001]
[1764197481423,14.14375407,3026.0,3025.9,0.001]
[1764197481619,13.25073108,3026.0,3025.9,0.001]
[1764197482003,12.79833108,3026.0,3025.9,0.001]
[1764197485219,1.13109811,3025.9,3025.8,0.001]
[1764197485419,3.72099339,3025.9,3025.8,0.001]
[1764197485941,4.17779339,3025.9,3025.8,0.001]
[1764197486840,4.56839339,3025.9,3025.8,0.001]
[1764197487037,7.48259526,3025.9,3025.8,0.001]
[1764197487528,7.48259526,3025.9,3025.8,0.9445]
[1764197491539,7.07709126,3025.9,3025.8,0.9445]
[1764197494545,6.80894237,3025.9,3025.8,0.9445]
[1764197498133,6.80894237,3025.9,3025.8,0.4887]
[1764197498347,6.80894237,3025.9,3025.8,0.9445]
[1764197500219,6.81094237,3025.9,3025.8,0.9445]
[1764197503824,5.91785655,3025.9,3025.8,0.9445]
[1764197509538,5.91785655,3025.9,3025.8,0.4887]
[1764197509860,5.91785655,3025.9,3025.8,0.9689]
[1764197511464,7.65304237,3025.9,3025.8,0.001]
[1764197511961,7.17054237,3025.9,3025.8,0.001]
[1764197512758,7.37854237,3025.9,3025.8,0.001]
[1764197513260,7.37862999,3025.9,3025.8,0.001]
[1764197517859,7.01902999,3025.9,3025.8,0.001]
[1764197518562,7.01902999,3025.9,3025.8,0.4524]
[1764197520862,7.01902999,3025.9,3025.8,0.001]
[1764197521062,7.37982999,3025.9,3025.8,0.001]
[1764197521766,7.01902999,3025.9,3025.8,0.9326]
[1764197522362,6.81102999,3025.9,3025.8,0.9326]
[1764197522571,4.99484606,3025.9,3025.8,0.9326]
[1764197523471,1.69004419,3025.9,3025.8,0.9326]
[1764197523770,0.9768955,3025.9,3025.8,0.9326]
[1764197524067,0.9768955,3025.9,3025.8,1.35656705]
[1764197529261,0.7688955,3025.9,3025.8,1.35656705]
[1764197529569,0.9768955,3025.9,3025.8,1.35656705]
[1764197530173,0.7688955,3025.9,3025.8,4.66147814]
[1764197530377,0.3120955,3025.9,3025.8,4.66147814]
[1764197531267,0.002,3025.9,3025.8,4.66147814]
[1764197531658,0.31131917,3025.9,3025.8,0.4524]
[1764197531845,0.31131917,3025.9,3025.8,0.9029]
[1764197532045,1.08321467,3025.9,3025.8,0.9029]
[1764197534468,4.38801654,3025.9,3025.8,0.9029]
[1764197534871,4.38801654,3025.9,3025.8,0.4524]
[1764197537177,4.88381654,3025.9,3025.8,0.001]
[1764197537974,4.38801654,3025.9,3025.8,0.001]
[1764197538750,4.38801654,3025.9,3025.8,0.4915]
[1764197538973,4.38801654,3025.9,3025.8,0.9522]
[1764197539183,4.38801654,3025.9,3025.8,0.4915]
[1764197548103,4.38801654,3025.9,3025.8,0.001]
[1764197549978,4.77791654,3025.9,3025.8,0.001]
[1764197550496,5.23721654,3025.9,3025.8,0.001]
[1764197551365,4.77791654,3025.9,3025.8,0.001]
[1764197552182,5.23721654,3025.9,3025.8,0.001]
[1764197552975,4.77791654,3025.9,3025.8,0.001]
[1764197553383,4.38801654,3025.9,3025.8,0.001]
[1764197553584,4.38801654,3025.9,3025.8,0.4915]
[1764197556992,1.08321467,3025.9,3025.8,0.9522]
[1764197557289,0.9818955,3025.9,3025.8,0.9522]
[1764197557492,4.59647716,3025.9,3025.8,0.4915]
[1764197557674,4.59647716,3025.9,3025.8,0.001]
[1764197557869,4.98637716,3025.9,3025.8,0.001]
[1764197558088,5.8616152,3025.9,3025.8,0.001]
[1764197558465,6.3209152,3025.9,3025.8,0.001]
[1764197562081,5.8616152,3025.9,3025.8,0.001]
[1764197562677,6.3209152,3025.9,3025.8,0.001]
[1764197564597,5.8616152,3025.9,3025.8,0.001]
[1764197564982,5.4717152,3025.9,3025.8,0.4726]
[1764197565296,5.4717152,3025.9,3025.8,0.9416]
[1764197565466,5.4717152,3025.9,3025.8,0.4726]
[1764197566793,4.38847716,3025.9,3025.8,0.9416]
[1764197566993,4.59647716,3025.9,3025.8,0.9416]
[1764197567197,4.38847716,3025.9,3025.8,0.9416]
[1764197567403,5.31070579,3025.9,3025.8,0.9416]
[1764197571405,5.68150579,3025.9,3025.8,0.001]
[1764197571697,6.7701267,3025.9,3025.8,0.001]
[1764197571874,7.2454267,3025.9,3025.8,0.001]
[1764197572286,6.2095267,3025.9,3025.8,0.001]
[1764197572675,6.5734267,3025.9,3025.8,0.001]
[1764197572899,6.2095267,3025.9,3025.8,0.4726]
[1764197574187,5.31070579,3025.9,3025.8,0.4726]
[1764197574384,5.31070579,3025.9,3025.8,0.9416]
[1764197577707,5.10270579,3025.9,3025.8,0.9416]
[1764197577880,2.00590392,3025.9,3025.8,0.9416]
[1764197580710,1.79790392,3025.9,3025.8,0.9416]
[1764197581013,2.00590392,3025.9,3025.8,0.9416]
[1764197581709,1.79790392,3025.9,3025.8,0.9416]
[1764197581910,12.19382682,3025.9,3025.8,0.001]
[1764197582210,12.74462682,3025.9,3025.8,0.001]
[1764197585112,12.19382682,3025.9,3025.8,0.001]
[1764197586313,5.79700579,3025.9,3025.8,0.4726]
[1764197587016,5.31070579,3025.9,3025.8,0.4726]
[1764197587989,5.31070579,3025.9,3025.8,0.4679]
[1764197588488,5.10270579,3025.9,3025.8,0.9289]
[1764197588689,5.31070579,3025.9,3025.8,0.9289]
[1764197590100,5.31070579,3025.9,3025.8,0.136785]
[1764197590290,5.31070579,3025.9,3025.8,0.1644]
[1764197592491,5.10270579,3025.9,3025.8,0.1644]
[1764197592686,5.31070579,3025.9,3025.8,0.1644]
[1764197596719,8.61550766,3025.9,3025.7,0.001]
[1764197596922,0.30977979,3025.8,3025.7,0.001]
[1764197597423,0.47517979,3025.8,3025.7,0.1654]
[1764197597604,0.68317979,3025.8,3025.7,0.1654]
[1764197599932,3.78009088,3025.8,3025.7,0.1654]
[1764197600130,3.98809088,3025.8,3025.7,0.1654]
[1764197603530,3.82269088,3025.8,3025.7,0.1654]
[1764197604029,0.51777979,3025.8,3025.7,0.1654]
[1764197604229,0.51777979,3025.8,3025.7,0.3298]
[1764197604534,3.82269088,3025.8,3025.7,0.1654]
[1764197604908,0.51777979,3025.8,3025.7,0.1654]
[1764197605308,3.82269088,3025.8,3025.7,0.1654]
[1764197605502,4.30079088,3025.8,3025.7,0.001]
[1764197605707,4.76159088,3025.8,3025.7,0.001]
[1764197606508,4.89396559,3025.8,3025.7,0.001]
[1764197608633,3.82769088,3025.8,3025.7,0.001]
[1764197609740,4.30579088,3025.8,3025.7,0.001]
[1764197609940,4.76159088,3025.8,3025.7,0.001]
[1764197610650,4.89396779,3025.8,3025.7,0.001]
[1764197612114,5.60795925,3025.8,3025.7,0.001]
[1764197613425,4.89396779,3025.8,3025.7,0.001]
[1764197614517,5.60723938,3025.8,3025.7,0.001]
[1764197615330,5.60725128,3025.8,3025.7,0.001]
[1764197615726,6.01275528,3025.8,3025.7,0.001]
[1764197618042,6.01475528,3025.8,3025.7,0.001]
[1764197618244,8.85886637,3025.8,3024.4,4.03201492]
[1764197618446,1.95696328,3025.7,3024.4,4.03201492]
[1764197618647,0.30977979,3025.6,3024.4,4.03201492]
[1764197618819,0.30977979,3025.5,3024.8,3.30600135]
[1764197619019,0.51777979,3025.4,3024.8,3.30600135]
[1764197619236,0.30977979,3025.3,3024.8,3.30600135]
[1764197619737,0.30977979,3025.3,3025.2,0.1654]
[1764197620740,1.24367979,3025.3,3025.2,0.001]
[1764197622327,4.5491371,3025.3,3025.2,0.001]
[1764197625648,1.24367979,3025.3,3025.2,0.001]
[1764197626432,4.5491371,3025.3,3025.2,0.001]
[1764197628845,4.68153416,3025.3,3025.2,0.001]
[1764197629039,5.50102303,3025.3,3025.2,0.001]
[1764197634463,5.50302303,3025.3,3025.2,0.001]
[1764197638960,5.90852703,3025.3,3025.2,0.001]
[1764197641278,6.11652703,3025.3,3025.2,0.001]
[1764197642651,6.82867704,3025.3,3025.2,0.001]
[1764197644272,0.405504,3025.2,3024.3,3.46950348]
[1764197644476,0.30977979,3025.1,3024.3,3.46950348]
[1764197644649,0.30977979,3025.0,3024.3,3.46950348]
[1764197644846,0.51777979,3024.9,3024.3,3.46950348]
[1764197645049,0.30977979,3024.8,3024.3,3.46950348]
[1764197645250,0.30977979,3024.7,3024.3,3.46950348]
[1764197645450,0.30977979,3024.6,3024.3,3.46950348]
[1764197645647,0.208,3024.5,3024.3,3.46950348]
[1764197646053,0.208,3024.5,3024.4,0.163]
[1764197646459,0.208,3024.5,3023.9,3.65318766]
[1764197646460,0.72411115,3024.4,3023.9,3.65318766]
[1764197646660,0.30899361,3024.3,3023.9,3.65318766]
[1764197646877,0.30899361,3024.2,3024.0,0.163]
[1764197647062,0.208,3024.1,3024.0,0.163]
[1764197647254,1.20122455,3024.1,3024.0,0.163]
[1764197647455,1.20122455,3024.1,3023.9,0.1832]
[1764197647784,0.208,3024.1,3024.0,0.163]
[1764197649185,1.20131005,3024.1,3024.0,0.163]
[1764197649767,1.5099733,3024.1,3024.0,0.163]
[1764197651178,5.30434754,3024.1,3023.6,3.4888891]
[1764197651373,4.99568429,3024.1,3023.6,3.4888891]
[1764197651571,0.77878137,3024.0,3023.5,3.30737122]
[1764197651777,0.4703,3024.0,3023.5,3.30737122]
[1764197652167,1.46367583,3024.0,3023.5,3.30737122]
[1764197652358,0.99337583,3024.0,3023.9,0.163]
[1764197652558,0.208,3024.0,3023.9,0.163]
[1764197652776,1.20137583,3024.0,3023.9,0.163]
[1764197653779,1.68897583,3024.0,3023.6,3.3082205]
[1764197653966,2.15927583,3024.0,3023.6,3.3082205]
[1764197654154,1.1659,3024.0,3023.6,3.3082205]
[1764197654356,0.99337583,3023.9,3023.6,3.3082205]
[1764197654981,0.99337583,3023.9,3023.6,0.001]
[1764197655282,0.99337583,3023.9,3023.8,0.163]
[1764197655867,0.99337583,3023.9,3023.8,0.326]
[1764197656059,1.20137583,3023.9,3023.8,0.326]
[1764197659197,1.20137583,3023.9,3023.8,0.163]
[1764197661276,1.69687583,3023.9,3023.6,0.001]
[1764197661471,2.14697583,3023.9,3023.6,0.001]
[1764197661688,0.208,3023.9,3023.8,0.163]
[1764197662484,0.208,3023.9,3023.6,0.001]
[1764197662485,1.60441476,3023.9,3023.6,0.001]
[1764197662690,1.33931476,3023.9,3023.6,0.001]
[1764197662868,0.4501,3023.8,3023.6,0.001]
[1764197663070,1.44347583,3023.8,3023.6,0.001]
[1764197663268,0.4955,3023.7,3023.6,0.001]
[1764197663697,0.002,3024.3,3023.6,6.72954357]
[1764197663896,0.002,3024.3,3024.2,6.56554357]
[1764197664290,0.002,3024.3,3024.2,6.72854357]
[1764197664493,0.002,3024.3,3024.2,6.93854357]
[1764197664698,0.002,3024.3,3024.2,7.66413768]
[1764197664892,0.002,3024.3,3024.2,9.09170581]
[1764197665301,0.002,3024.3,3024.2,5.99582185]
[1764197666583,0.002,3024.3,3024.2,5.78582185]
[1764197672698,0.002,3024.3,3024.2,12.18836542]
[1764197674874,0.002,3024.3,3024.2,36.21944642]
[1764197675079,0.002,3024.3,3024.2,37.19443271]
[1764197675390,0.002,3024.3,3024.2,37.32882977]
[1764197677700,0.002,3024.3,3024.2,36.56284348]
[1764197678095,0.002,3024.3,3024.2,36.35384348]
[1764197678296,0.002,3024.3,3024.2,36.56284348]
[1764197680016,0.002,3024.3,3024.2,36.35384348]
[1764197680194,0.002,3024.3,3024.2,36.56284348]
[1764197681880,0.002,3024.3,3024.2,37.12700097]
[1764197682902,0.002,3024.3,3024.2,37.66486771]
[1764197684000,0.002,3024.3,3024.2,38.07037171]
[1764197685097,0.002,3024.3,3024.2,43.66133527]
[1764197686086,0.002,3024.3,3024.2,41.88037171]
[1764197686313,0.002,3024.3,3024.2,41.67137171]
[1764197686512,0.002,3024.3,3024.2,41.34150497]
[1764197693301,0.002,3024.3,3024.2,43.71612305]
[1764197700303,0.002,3024.3,3024.2,41.87937171]
[1764197702833,0.002,3024.3,3024.2,41.17850497]
[1764197703332,0.002,3024.3,3024.2,41.04410791]
[1764197703515,0.002,3024.3,3024.2,37.23410791]
[1764197706233,0.002,3024.3,3024.2,37.02610791]
[1764197706439,0.002,3024.3,3024.2,36.3005138]
[1764197706640,0.4946,3024.3,3024.2,38.72315666]
[1764197706841,0.4946,3024.3,3024.2,39.44875077]
[1764197707147,0.002,3024.3,3024.2,39.44875077]
[1764197708245,0.4965,3024.3,3024.2,39.44875077]
[1764197708543,0.9802,3024.3,3024.2,39.44875077]
[1764197709232,0.4965,3024.3,3024.2,39.44875077]
[1764197709445,0.4965,3024.3,3024.2,43.25875077]
[1764197710312,0.4965,3024.3,3024.2,43.42175077]
[1764197710313,0.002,3024.3,3024.2,43.42175077]
[1764197711249,0.002,3024.3,3024.2,39.61175077]
[1764197712120,0.002,3024.3,3024.2,37.23410791]
[1764197715832,0.002,3024.3,3024.2,36.66995042]
[1764197717146,0.5003,3024.3,3024.2,36.50695042]
[1764197717648,0.002,3024.3,3024.2,36.50695042]
[1764197718654,0.002,3024.3,3024.2,36.66452129]
[1764197721329,0.002,3024.3,3024.2,40.47452129]
[1764197724457,0.002,3024.3,3024.2,42.85472493]
[1764197725053,0.002,3024.3,3024.2,40.47452129]
[1764197726159,0.002,3024.3,3024.2,42.85470355]
[1764197729348,0.9634,3024.3,3024.2,42.69170355]
[1764197729939,0.5003,3024.3,3024.2,42.69170355]
[1764197732380,0.002,3024.3,3024.2,42.69170355]
[1764197734369,0.002,3024.3,3024.2,42.85470355]
[1764197734555,0.002,3024.3,3024.2,42.69170355]
[1764197736950,0.5003,3024.3,3024.2,42.69170355]
[1764197739468,0.5003,3024.3,3024.2,40.31152129]
[1764197740164,0.002,3024.3,3024.2,40.31152129]
[1764197741041,0.5003,3024.3,3024.2,40.31152129]
[1764197741241,0.9634,3024.3,3024.2,40.31152129]
[1764197741966,0.5003,3024.3,3024.2,40.31152129]
[1764197751045,0.002,3024.3,3024.2,40.31152129]
[1764197752754,0.463,3024.3,3024.2,40.31152129]
[1764197753174,0.463,3024.3,3024.2,29.49090285]
[1764197753470,0.9253,3024.3,3024.2,30.65273068]
[1764197759378,0.9253,3024.3,3024.2,28.27133472]
[1764197761089,0.9253,3024.3,3024.2,34.66844916]
[1764197761254,0.9253,3024.3,3024.2,35.59374916]
[1764197777594,0.9253,3024.3,3024.2,35.38574916]
[1764197777794,0.9253,3024.3,3024.2,34.66844916]
[1764197778695,0.9253,3024.3,3024.2,34.66972304]
[1764197779809,0.002,3024.3,3024.2,37.86021357]
[1764197780095,0.002,3024.3,3024.2,39.14328506]
[1764197780666,0.002,3024.3,3024.2,42.95328506]
[1764197781067,0.002,3024.3,3024.2,42.79028506]
[1764197781600,0.002,3024.3,3024.2,45.17168102]
[1764197786010,0.002,3024.3,3024.2,45.33468102]
[1764197786209,0.002,3024.3,3024.2,45.49768102]
[1764197786502,0.002,3024.3,3024.2,45.33468102]
[1764197790798,0.002,3024.3,3024.2,45.49768102]
[1764197791312,0.002,3024.3,3024.2,45.33468102]
[1764197792222,0.002,3024.3,3024.2,42.95328506]
[1764197795510,0.002,3024.3,3024.2,42.79028506]
[1764197796787,0.002,3024.3,3024.2,42.95328506]
[1764197797612,0.4563,3024.3,3024.2,42.79028506]
[1764197797913,0.9074,3024.3,3024.2,42.79028506]
[1764197799014,0.9074,3024.3,3024.2,41.86400957]
[1764197799313,0.002,3024.3,3024.2,44.40840553]
[1764197799497,0.002,3024.3,3024.2,42.54778106]
[1764197801323,0.002,3024.3,3024.2,42.95328506]
[1764197812819,0.002,3024.3,3024.2,42.79028506]
[1764197813722,0.002,3024.3,3024.2,42.95328506]
[1764197814829,0.4946,3024.3,3024.2,44.24366633]
[1764197815121,0.992,3024.3,3024.2,44.24366633]
[1764197816300,0.992,3024.3,3024.2,40.43366633]
[1764197818700,0.992,3024.3,3024.2,34.03527801]
[1764197818902,0.992,3024.3,3024.2,40.43366633]
[1764197820031,0.002,3024.3,3024.2,41.08405914]
[1764197821300,0.002,3024.3,3024.2,39.27290638]
[1764197822206,0.002,3024.3,3024.2,39.10990638]
[1764197822401,0.002,3024.3,3024.2,42.91990638]
[1764197823135,0.002,3024.3,3024.2,43.08290638]
[1764197823513,0.002,3024.3,3024.2,42.71190638]
[1764197828009,0.002,3024.3,3024.2,42.54890638]
[1764197828228,0.002,3024.3,3024.2,42.71190638]
[1764197829512,0.002,3024.3,3024.2,43.35077312]
[1764197833633,0.002,3024.7,3024.3,3.36837811]
[1764197833818,0.002,3024.7,3024.6,9.66641089]
[1764197834016,0.002,3024.7,3024.6,10.1538037]
[1764197834216,0.002,3024.7,3024.6,8.26347524]
[1764197834439,0.002,3024.7,3024.6,10.64241144]
[1764197835018,0.002,3024.7,3024.6,10.47941144]
[1764197835218,0.002,3024.7,3024.6,12.24332168]
[1764197835637,0.002,3024.7,3024.6,15.95504799]
[1764197837014,0.002,3024.7,3024.6,13.73911179]
[1764197837324,0.002,3024.7,3024.6,22.5156595]
[1764197837728,0.002,3024.7,3024.6,22.51538108]
[1764197838043,0.4858,3025.0,3024.6,22.51538108]
[1764197838044,0.002,3025.0,3024.7,1.61849092]
[1764197838383,0.002,3025.0,3024.9,16.46859572]
[1764197838521,0.002,3025.0,3024.9,10.55169689]
[1764197839057,0.002,3025.0,3024.9,8.65777592]
[1764197839348,0.002,3025.0,3024.9,11.03469242]
[1764197839656,0.9587,3025.0,3024.9,14.17682493]
[1764197839858,0.4749,3025.0,3024.9,16.6864819]
[1764197840161,0.002,3025.0,3024.9,16.6864819]
[1764197841654,0.002,3025.0,3024.9,16.8494819]
[1764197842475,0.002,3025.0,3024.9,14.47332729]
[1764197843050,0.002,3025.0,3024.9,18.28332729]
[1764197844062,0.002,3025.4,3025.1,0.405504]
[1764197844365,0.4858,3025.4,3025.2,7.32607911]
[1764197844671,0.4858,3025.4,3025.2,8.99382763]
[1764197844875,0.4749,3025.3,3025.2,8.99382763]
[1764197845373,0.4749,3025.3,3025.2,12.2993942]
[1764197845576,1e-08,3025.4,3025.2,16.2723942]
[1764197845760,0.002,3025.7,3025.4,0.405504]
[1764197845951,0.002,3025.7,3025.6,6.960989]
[1764197846151,1e-08,3025.9,3025.7,1.13109811]
[1764197846347,1e-08,3026.1,3025.9,1.13109811]
[1764197846678,1e-08,3026.1,3026.0,8.2425394]
[1764197846874,1e-08,3026.1,3026.0,8.37483531]
[1764197847248,1e-08,3026.1,3026.0,10.15263062]
[1764197847448,1e-08,3026.1,3026.0,13.45732328]
[1764197847672,1e-08,3026.1,3026.0,13.42618828]